[Event "Titled Tuesday Blitz May 10 Early 2022"]
[White "Harish, Neeraj"]
[Black "Itkis, Boris"]
[WhiteFideId "30958130"]
[BlackFideId "1209167"]
[WhiteElo "1574"]
[BlackElo "2207"]
[Result "0-1"]
[Round "04"]
[TimeControl "180+1"]
[Date "2022.05.11"]
[WhiteClock "0:00:05"]
[BlackClock "0:00:08"]

1. e4 {[%clk 0:03:00]}  c5 {[%clk 0:02:59]} 2. Nf3 {[%clk 0:02:57]}  Nc6 {[%clk 0:02:59]} 3. Bb5 {[%clk 0:02:56]}  g6 {[%clk 0:02:58]} 4. O-O {[%clk 0:02:53]}  Bg7 {[%clk 0:02:57]} 5. Bxc6 {[%clk 0:02:47]}  bxc6 {[%clk 0:02:53]} 6. e5 {[%clk 0:02:38]}  Nh6 {[%clk 0:02:50]} 7. d3 {[%clk 0:02:35]}  O-O {[%clk 0:02:49]} 8. b3 {[%clk 0:02:34]}  d5 {[%clk 0:02:47]} 9. Bb2 {[%clk 0:02:28]}  e6 {[%clk 0:02:34]} 10. Nbd2 {[%clk 0:02:21]}  Qb6 {[%clk 0:02:12]} 11. c4 {[%clk 0:01:51]}  Nf5 {[%clk 0:02:09]} 12. g4 {[%clk 0:01:45]}  Nd4 {[%clk 0:02:02]} 13. Bxd4 {[%clk 0:01:44]}  cxd4 {[%clk 0:02:02]} 14. Re1 {[%clk 0:01:32]}  a5 {[%clk 0:01:57]} 15. Nh4 {[%clk 0:01:27]}  a4 {[%clk 0:01:50]} 16. f4 {[%clk 0:01:12]}  axb3 {[%clk 0:01:48]} 17. axb3 {[%clk 0:01:09]}  Rxa1 {[%clk 0:01:30]} 18. Qxa1 {[%clk 0:01:07]}  Bh6 {[%clk 0:01:29]} 19. g5 {[%clk 0:01:02]}  Bg7 {[%clk 0:01:29]} 20. Qa3 {[%clk 0:00:53]}  Bb7 {[%clk 0:01:18]} 21. c5 {[%clk 0:00:50]}  Qb5 {[%clk 0:01:15]} 22. b4 {[%clk 0:00:44]}  Ra8 {[%clk 0:01:14]} 23. Qb3 {[%clk 0:00:41]}  Ra4 {[%clk 0:01:10]} 24. Rb1 {[%clk 0:00:38]}  Ba6 {[%clk 0:01:10]} 25. Nhf3 {[%clk 0:00:28]}  Bf8 {[%clk 0:00:46]} 26. h4 {[%clk 0:00:16]}  h5 {[%clk 0:00:34]} 27. Kf2 {[%clk 0:00:10]}  Bb7 {[%clk 0:00:30]} 28. Nxd4 {[%clk 0:00:08]}  Qa6 {[%clk 0:00:30]} 29. b5 {[%clk 0:00:07]}  cxb5 {[%clk 0:00:30]} 30. Nxb5 {[%clk 0:00:07]}  Bc6 {[%clk 0:00:26]} 31. d4 {[%clk 0:00:07]}  Bxb5 {[%clk 0:00:19]} 32. Qxb5 {[%clk 0:00:07]}  Qxb5 {[%clk 0:00:19]} 33. Rxb5 {[%clk 0:00:08]}  Rxd4 {[%clk 0:00:20]} 34. Ke3 {[%clk 0:00:09]}  Ra4 {[%clk 0:00:18]} 35. c6 {[%clk 0:00:09]}  Ra6 {[%clk 0:00:17]} 36. c7 {[%clk 0:00:09]}  Rc6 {[%clk 0:00:17]} 37. Rb7 {[%clk 0:00:09]}  Kg7 {[%clk 0:00:15]} 38. Nb3 {[%clk 0:00:09]}  Rc3+ {[%clk 0:00:11]} 39. Kd2 {[%clk 0:00:08]}  Rc4 {[%clk 0:00:10]} 40. Na5 {[%clk 0:00:07]}  Bb4+ {[%clk 0:00:08]} 41. Kd3 {[%clk 0:00:05]}  Bxa5 {[%clk 0:00:08]} 42. c8=Q {[%clk 0:00:05]}  Rxc8 {[%clk 0:00:08]} 0-1


[Site "https://www.chess.com"]

[Event "Titled Tuesday Blitz May 10 Early 2022"]
[White "Hoffmann, Asa"]
[Black "Shyaamnikhil P"]
[WhiteFideId "2001470"]
[BlackFideId "5024218"]
[WhiteElo "2117"]
[BlackElo "2329"]
[Result "0-1"]
[Round "04"]
[TimeControl "180+1"]
[Date "2022.05.11"]
[WhiteClock "0:00:41"]
[BlackClock "0:00:10"]

1. d4 {[%clk 0:02:54]}  Nf6 {[%clk 0:02:59]} 2. Bg5 {[%clk 0:02:52]}  Ne4 {[%clk 0:02:57]} 3. Bf4 {[%clk 0:02:51]}  c5 {[%clk 0:02:57]} 4. f3 {[%clk 0:02:51]}  Qa5+ {[%clk 0:02:56]} 5. c3 {[%clk 0:02:51]}  Nf6 {[%clk 0:02:56]} 6. d5 {[%clk 0:02:51]}  d6 {[%clk 0:02:53]} 7. e4 {[%clk 0:02:51]}  g6 {[%clk 0:02:52]} 8. Qd2 {[%clk 0:02:51]}  Bg7 {[%clk 0:02:49]} 9. Na3 {[%clk 0:02:50]}  Nbd7 {[%clk 0:02:48]} 10. Nh3 {[%clk 0:02:49]}  h6 {[%clk 0:02:46]} 11. Nf2 {[%clk 0:02:48]}  Qd8 {[%clk 0:02:44]} 12. Nc4 {[%clk 0:02:41]}  Nh5 {[%clk 0:02:36]} 13. Be3 {[%clk 0:02:39]}  b5 {[%clk 0:02:35]} 14. Na3 {[%clk 0:02:37]}  a6 {[%clk 0:02:34]} 15. Nc2 {[%clk 0:02:35]}  Ne5 {[%clk 0:02:32]} 16. Be2 {[%clk 0:02:34]}  g5 {[%clk 0:02:13]} 17. g3 {[%clk 0:02:23]}  Nf6 {[%clk 0:02:09]} 18. h3 {[%clk 0:02:17]}  Ng6 {[%clk 0:01:59]} 19. f4 {[%clk 0:01:59]}  e6 {[%clk 0:01:38]} 20. fxg5 {[%clk 0:01:56]}  hxg5 {[%clk 0:01:38]} 21. Bxg5 {[%clk 0:01:56]}  exd5 {[%clk 0:01:35]} 22. exd5 {[%clk 0:01:56]}  Qb6 {[%clk 0:01:01]} 23. O-O-O {[%clk 0:01:53]}  Bb7 {[%clk 0:00:54]} 24. Qe3+ {[%clk 0:01:50]}  Kf8 {[%clk 0:00:40]} 25. Bf3 {[%clk 0:01:49]}  Re8 {[%clk 0:00:37]} 26. Qd2 {[%clk 0:01:43]}  Ne5 {[%clk 0:00:31]} 27. Bg2 {[%clk 0:01:36]}  Nc4 {[%clk 0:00:19]} 28. Qd3 {[%clk 0:01:25]}  Qa5 {[%clk 0:00:17]} 29. a3 {[%clk 0:01:23]}  Ne5 {[%clk 0:00:16]} 30. Qf5 {[%clk 0:01:19]}  Bc8 {[%clk 0:00:16]} 31. Qf4 {[%clk 0:01:17]}  Nh5 {[%clk 0:00:16]} 32. Qd2 {[%clk 0:00:57]}  Nc4 {[%clk 0:00:15]} 33. Qd3 {[%clk 0:00:53]}  Ne5 {[%clk 0:00:15]} 34. Qd2 {[%clk 0:00:51]}  Nxg3 {[%clk 0:00:14]} 35. Rhe1 {[%clk 0:00:51]}  Nc4 {[%clk 0:00:10]} 36. Rxe8+ {[%clk 0:00:49]}  Kxe8 {[%clk 0:00:11]} 37. Qf4 {[%clk 0:00:41]}  Ne2+ {[%clk 0:00:10]} 0-1


[Site "https://www.chess.com"]

[Event "Titled Tuesday Blitz May 10 Early 2022"]
[White "Ismayil, Malak"]
[Black "Simonovic, Miroslav"]
[WhiteFideId "13412604"]
[BlackFideId "919152"]
[WhiteElo "1879"]
[BlackElo "2043"]
[Result "1-0"]
[Round "04"]
[TimeControl "180+1"]
[Date "2022.05.11"]
[WhiteClock "0:01:16"]
[BlackClock "0:00:01"]

1. e4 {[%clk 0:03:00]}  c5 {[%clk 0:02:31]} 2. Nf3 {[%clk 0:02:59]}  Nc6 {[%clk 0:02:30]} 3. Bb5 {[%clk 0:02:59]}  g6 {[%clk 0:02:29]} 4. c3 {[%clk 0:02:53]}  Bg7 {[%clk 0:02:29]} 5. d4 {[%clk 0:02:53]}  cxd4 {[%clk 0:02:28]} 6. cxd4 {[%clk 0:02:54]}  Nf6 {[%clk 0:02:23]} 7. Nc3 {[%clk 0:02:54]}  Qa5 {[%clk 0:02:11]} 8. Bxc6 {[%clk 0:02:51]}  dxc6 {[%clk 0:02:06]} 9. h3 {[%clk 0:02:51]}  O-O {[%clk 0:02:05]} 10. O-O {[%clk 0:02:50]}  Rd8 {[%clk 0:01:59]} 11. Qc2 {[%clk 0:02:47]}  Qh5 {[%clk 0:01:58]} 12. Qe2 {[%clk 0:02:44]}  a5 {[%clk 0:01:42]} 13. Be3 {[%clk 0:02:35]}  b6 {[%clk 0:01:41]} 14. Rfd1 {[%clk 0:02:26]}  b5 {[%clk 0:01:26]} 15. a3 {[%clk 0:02:21]}  Ba6 {[%clk 0:01:23]} 16. Qc2 {[%clk 0:02:17]}  Rac8 {[%clk 0:01:07]} 17. e5 {[%clk 0:02:13]}  Nd5 {[%clk 0:01:01]} 18. Ne4 {[%clk 0:02:12]}  b4 {[%clk 0:00:39]} 19. Nc5 {[%clk 0:02:05]}  Ra8 {[%clk 0:00:27]} 20. e6 {[%clk 0:01:59]}  Bc8 {[%clk 0:00:18]} 21. exf7+ {[%clk 0:01:58]}  Kxf7 {[%clk 0:00:19]} 22. axb4 {[%clk 0:01:52]}  Nxb4 {[%clk 0:00:18]} 23. Qc4+ {[%clk 0:01:50]}  Nd5 {[%clk 0:00:16]} 24. Ng5+ {[%clk 0:01:45]}  Kg8 {[%clk 0:00:15]} 25. Nge6 {[%clk 0:01:42]}  Bxe6 {[%clk 0:00:14]} 26. Nxe6 {[%clk 0:01:43]}  Rd6 {[%clk 0:00:11]} 27. Nf4 {[%clk 0:01:41]}  Qf5 {[%clk 0:00:10]} 28. Nxd5 {[%clk 0:01:39]}  Qxd5 {[%clk 0:00:09]} 29. Qe2 {[%clk 0:01:39]}  Qb5 {[%clk 0:00:06]} 30. Qg4 {[%clk 0:01:28]}  Rad8 {[%clk 0:00:05]} 31. Qh4 {[%clk 0:01:25]}  e5 {[%clk 0:00:04]} 32. Bg5 {[%clk 0:01:21]}  R8d7 {[%clk 0:00:03]} 33. Re1 {[%clk 0:01:20]}  exd4 {[%clk 0:00:02]} 34. Re8+ {[%clk 0:01:18]}  Kf7 {[%clk 0:00:02]} 35. Rae1 {[%clk 0:01:18]}  Qf5 {[%clk 0:00:01]} 36. Qxh7 {[%clk 0:01:16]}  d3 {[%clk 0:00:01]} 37. Qg8# {[%clk 0:01:16]} 1-0


[Site "https://www.chess.com"]

[Event "Titled Tuesday Blitz May 10 Early 2022"]
[White "Jarovinsky, Alexey"]
[Black "Ferreira, Vitor Hugo Vieira"]
[WhiteFideId "14115131"]
[BlackFideId "2119765"]
[WhiteElo "2446"]
[BlackElo "2165"]
[Result "1-0"]
[Round "04"]
[TimeControl "180+1"]
[Date "2022.05.11"]
[WhiteClock "0:00:58"]
[BlackClock "0:00:36"]

1. Nc3 {[%clk 0:03:00]}  d5 {[%clk 0:02:59]} 2. e4 {[%clk 0:02:56]}  d4 {[%clk 0:02:54]} 3. Nce2 {[%clk 0:02:55]}  c5 {[%clk 0:02:54]} 4. Ng3 {[%clk 0:02:54]}  Nc6 {[%clk 0:02:54]} 5. Bb5 {[%clk 0:02:53]}  Qb6 {[%clk 0:02:52]} 6. Bxc6+ {[%clk 0:02:53]}  Qxc6 {[%clk 0:02:52]} 7. d3 {[%clk 0:02:53]}  g6 {[%clk 0:02:37]} 8. Nf3 {[%clk 0:02:52]}  Bg7 {[%clk 0:02:37]} 9. O-O {[%clk 0:02:52]}  Nf6 {[%clk 0:02:12]} 10. Bf4 {[%clk 0:02:47]}  O-O {[%clk 0:02:11]} 11. h3 {[%clk 0:02:46]}  b6 {[%clk 0:02:04]} 12. Qd2 {[%clk 0:02:46]}  Re8 {[%clk 0:02:01]} 13. Bh6 {[%clk 0:02:43]}  Bh8 {[%clk 0:02:01]} 14. a4 {[%clk 0:02:41]}  a5 {[%clk 0:01:57]} 15. b3 {[%clk 0:02:39]}  Bb7 {[%clk 0:01:57]} 16. Nh2 {[%clk 0:02:30]}  e5 {[%clk 0:01:52]} 17. f4 {[%clk 0:02:27]}  exf4 {[%clk 0:01:53]} 18. Qxf4 {[%clk 0:02:24]}  Qe6 {[%clk 0:01:49]} 19. Rf2 {[%clk 0:02:11]}  Nd7 {[%clk 0:01:47]} 20. Raf1 {[%clk 0:01:59]}  Ne5 {[%clk 0:01:45]} 21. Qh4 {[%clk 0:01:48]}  f6 {[%clk 0:01:38]} 22. Ne2 {[%clk 0:01:41]}  Bc6 {[%clk 0:01:17]} 23. Ng4 {[%clk 0:01:37]}  Nxg4 {[%clk 0:01:14]} 24. hxg4 {[%clk 0:01:38]}  Ra7 {[%clk 0:01:11]} 25. g5 {[%clk 0:01:34]}  Rf7 {[%clk 0:01:09]} 26. gxf6 {[%clk 0:01:31]}  Rd8 {[%clk 0:00:58]} 27. Bg5 {[%clk 0:01:26]}  Rd6 {[%clk 0:00:55]} 28. Nf4 {[%clk 0:01:25]}  Qe5 {[%clk 0:00:55]} 29. Nh3 {[%clk 0:01:10]}  c4 {[%clk 0:00:47]} 30. Bf4 {[%clk 0:00:58]}  Qxf6 {[%clk 0:00:36]} 31. Bg5 {[%clk 0:00:58]} 1-0


[Site "https://www.chess.com"]

[Event "Titled Tuesday Blitz May 10 Early 2022"]
[White "Johnson, Ben"]
[Black "Demin, Vladimir"]
[WhiteFideId "2010917"]
[BlackFideId "4167457"]
[WhiteElo "2229"]
[BlackElo "2454"]
[Result "0-1"]
[Round "04"]
[TimeControl "180+1"]
[Date "2022.05.11"]
[WhiteClock "0:00:08"]
[BlackClock "0:00:41"]

1. Nf3 {[%clk 0:03:00]}  d5 {[%clk 0:02:55]} 2. e3 {[%clk 0:03:01]}  Nd7 {[%clk 0:02:52]} 3. d4 {[%clk 0:02:53]}  Ngf6 {[%clk 0:02:51]} 4. c4 {[%clk 0:02:48]}  e6 {[%clk 0:02:50]} 5. Nc3 {[%clk 0:02:47]}  c6 {[%clk 0:02:50]} 6. Bd3 {[%clk 0:02:40]}  dxc4 {[%clk 0:02:49]} 7. Bxc4 {[%clk 0:02:40]}  b5 {[%clk 0:02:49]} 8. Bd3 {[%clk 0:02:39]}  a6 {[%clk 0:02:49]} 9. O-O {[%clk 0:02:39]}  Bb7 {[%clk 0:02:49]} 10. a3 {[%clk 0:02:32]}  c5 {[%clk 0:02:49]} 11. Qc2 {[%clk 0:02:20]}  Rc8 {[%clk 0:02:43]} 12. Rd1 {[%clk 0:02:03]}  Qb6 {[%clk 0:02:33]} 13. Qe2 {[%clk 0:01:46]}  Be7 {[%clk 0:02:14]} 14. Bc2 {[%clk 0:01:10]}  O-O {[%clk 0:01:59]} 15. e4 {[%clk 0:01:05]}  cxd4 {[%clk 0:01:58]} 16. Nxd4 {[%clk 0:01:05]}  Bc5 {[%clk 0:01:58]} 17. Nf3 {[%clk 0:00:53]}  Ng4 {[%clk 0:01:55]} 18. Rxd7 {[%clk 0:00:31]}  Nxf2 {[%clk 0:01:54]} 19. Kf1 {[%clk 0:00:29]}  f5 {[%clk 0:01:37]} 20. e5 {[%clk 0:00:25]}  Ng4 {[%clk 0:00:53]} 21. h3 {[%clk 0:00:22]}  Bxf3 {[%clk 0:00:51]} 22. gxf3 {[%clk 0:00:20]}  Nf2 {[%clk 0:00:51]} 23. b4 {[%clk 0:00:15]}  Bd4 {[%clk 0:00:49]} 24. Rxd4 {[%clk 0:00:12]}  Qxd4 {[%clk 0:00:49]} 25. Qxf2 {[%clk 0:00:10]}  Qxc3 {[%clk 0:00:41]} 26. Ra2 {[%clk 0:00:10]}  Qc4+ {[%clk 0:00:40]} 27. Bd3 {[%clk 0:00:07]}  Qxd3+ {[%clk 0:00:41]} 28. Kg2 {[%clk 0:00:08]}  Rxc1 {[%clk 0:00:41]} 0-1


[Site "https://www.chess.com"]

[Event "Titled Tuesday Blitz May 10 Early 2022"]
[White "Juhasz, Agoston"]
[Black "Nogerbek, Kazybek"]
[WhiteFideId "778346"]
[BlackFideId "13710427"]
[WhiteElo "2211"]
[BlackElo "2441"]
[Result "0-1"]
[Round "04"]
[TimeControl "180+1"]
[Date "2022.05.10"]
[WhiteClock "0:00:23"]
[BlackClock "0:01:40"]

1. d4 {[%clk 0:03:00]}  Nf6 {[%clk 0:02:57]} 2. Nf3 {[%clk 0:02:59]}  g6 {[%clk 0:02:57]} 3. g3 {[%clk 0:02:57]}  Bg7 {[%clk 0:02:58]} 4. Bg2 {[%clk 0:02:58]}  O-O {[%clk 0:02:59]} 5. O-O {[%clk 0:02:59]}  Nc6 {[%clk 0:02:57]} 6. c4 {[%clk 0:02:38]}  d5 {[%clk 0:02:57]} 7. cxd5 {[%clk 0:02:36]}  Nxd5 {[%clk 0:02:58]} 8. Nc3 {[%clk 0:02:35]}  Nb6 {[%clk 0:02:55]} 9. Qc2 {[%clk 0:02:32]}  Bf5 {[%clk 0:02:44]} 10. e4 {[%clk 0:02:31]}  Bg4 {[%clk 0:02:44]} 11. d5 {[%clk 0:02:31]}  Bxf3 {[%clk 0:02:44]} 12. Bxf3 {[%clk 0:02:31]}  Nd4 {[%clk 0:02:45]} 13. Qd3 {[%clk 0:02:26]}  Nd7 {[%clk 0:02:44]} 14. Bg2 {[%clk 0:02:07]}  c6 {[%clk 0:02:43]} 15. Be3 {[%clk 0:01:54]}  e5 {[%clk 0:02:19]} 16. dxc6 {[%clk 0:01:42]}  bxc6 {[%clk 0:02:17]} 17. Rfd1 {[%clk 0:01:36]}  Qa5 {[%clk 0:02:12]} 18. Rac1 {[%clk 0:01:23]}  Nc5 {[%clk 0:02:06]} 19. Qc4 {[%clk 0:01:20]}  Rab8 {[%clk 0:02:01]} 20. b3 {[%clk 0:01:18]}  Rfd8 {[%clk 0:01:54]} 21. Nb1 {[%clk 0:00:46]}  Nce6 {[%clk 0:01:52]} 22. Nc3 {[%clk 0:00:40]}  h5 {[%clk 0:01:49]} 23. Qa4 {[%clk 0:00:40]}  Qxc3 {[%clk 0:01:39]} 24. Rxc3 {[%clk 0:00:30]}  Ne2+ {[%clk 0:01:39]} 25. Kf1 {[%clk 0:00:30]}  Nxc3 {[%clk 0:01:39]} 26. Rxd8+ {[%clk 0:00:23]}  Rxd8 {[%clk 0:01:40]} 0-1


[Site "https://www.chess.com"]

[Event "Titled Tuesday Blitz May 10 Early 2022"]
[White "Kashefi, Amir Hosein"]
[Black "Omelja, Artem"]
[WhiteFideId "12557935"]
[BlackFideId "14119846"]
[WhiteElo "2005"]
[BlackElo "2382"]
[Result "1-0"]
[Round "04"]
[TimeControl "180+1"]
[Date "2022.05.11"]
[WhiteClock "0:00:56"]
[BlackClock "0:00:12"]

1. d4 {[%clk 0:02:53]}  d5 {[%clk 0:02:58]} 2. Nf3 {[%clk 0:02:53]}  Nf6 {[%clk 0:02:54]} 3. c4 {[%clk 0:02:53]}  c6 {[%clk 0:02:54]} 4. Nc3 {[%clk 0:02:53]}  e6 {[%clk 0:02:52]} 5. Bg5 {[%clk 0:02:53]}  h6 {[%clk 0:02:53]} 6. Bxf6 {[%clk 0:02:53]}  Qxf6 {[%clk 0:02:54]} 7. e4 {[%clk 0:02:52]}  dxe4 {[%clk 0:02:50]} 8. Nxe4 {[%clk 0:02:53]}  Qd8 {[%clk 0:02:51]} 9. Bd3 {[%clk 0:02:52]}  g6 {[%clk 0:02:48]} 10. O-O {[%clk 0:02:51]}  Bg7 {[%clk 0:02:48]} 11. c5 {[%clk 0:02:50]}  O-O {[%clk 0:02:42]} 12. Nd6 {[%clk 0:02:49]}  Nd7 {[%clk 0:02:42]} 13. Re1 {[%clk 0:02:49]}  Nf6 {[%clk 0:02:42]} 14. Ne5 {[%clk 0:02:48]}  Ne8 {[%clk 0:02:35]} 15. Nxe8 {[%clk 0:02:19]}  Rxe8 {[%clk 0:02:31]} 16. Be4 {[%clk 0:02:17]}  Qc7 {[%clk 0:02:25]} 17. Qc2 {[%clk 0:02:13]}  Bd7 {[%clk 0:02:13]} 18. Rad1 {[%clk 0:02:06]}  Rad8 {[%clk 0:02:11]} 19. Nc4 {[%clk 0:02:01]}  Bf8 {[%clk 0:02:02]} 20. Bxg6 {[%clk 0:01:54]}  fxg6 {[%clk 0:02:01]} 21. Qxg6+ {[%clk 0:01:55]}  Bg7 {[%clk 0:02:00]} 22. Nd6 {[%clk 0:01:53]}  Rf8 {[%clk 0:02:00]} 23. Rd3 {[%clk 0:01:50]}  Rf6 {[%clk 0:01:57]} 24. Qh5 {[%clk 0:01:37]}  Rdf8 {[%clk 0:01:32]} 25. Rg3 {[%clk 0:01:35]}  Kh8 {[%clk 0:01:18]} 26. Re4 {[%clk 0:01:18]}  Rxf2 {[%clk 0:01:08]} 27. h3 {[%clk 0:01:18]}  Rf1+ {[%clk 0:00:24]} 28. Kh2 {[%clk 0:01:16]}  e5 {[%clk 0:00:24]} 29. Rxg7 {[%clk 0:01:05]}  Kxg7 {[%clk 0:00:21]} 30. Qxe5+ {[%clk 0:01:05]}  R1f6 {[%clk 0:00:18]} 31. Nf5+ {[%clk 0:01:00]}  Bxf5 {[%clk 0:00:15]} 32. Qxc7+ {[%clk 0:01:00]}  R8f7 {[%clk 0:00:15]} 33. Re7 {[%clk 0:01:00]}  Bg6 {[%clk 0:00:14]} 34. Qxb7 {[%clk 0:00:59]}  Rxe7 {[%clk 0:00:14]} 35. Qxe7+ {[%clk 0:00:59]}  Bf7 {[%clk 0:00:15]} 36. Qe5 {[%clk 0:01:00]}  Bxa2 {[%clk 0:00:12]} 37. Qc7+ {[%clk 0:00:57]}  Kg6 {[%clk 0:00:11]} 38. b3 {[%clk 0:00:56]}  Bxb3 {[%clk 0:00:11]} 39. Qg3+ {[%clk 0:00:56]}  Kh7 {[%clk 0:00:10]} 40. Qxb3 {[%clk 0:00:57]}  Rg6 {[%clk 0:00:10]} 41. Qf7+ {[%clk 0:00:56]}  Rg7 {[%clk 0:00:11]} 42. Qf5+ {[%clk 0:00:56]}  Rg6 {[%clk 0:00:10]} 43. Qd7+ {[%clk 0:00:56]}  Rg7 {[%clk 0:00:10]} 44. Qxc6 {[%clk 0:00:56]}  a5 {[%clk 0:00:11]} 45. d5 {[%clk 0:00:56]}  a4 {[%clk 0:00:12]} 46. Qxa4 {[%clk 0:00:56]} 1-0


[Site "https://www.chess.com"]

[Event "Titled Tuesday Blitz May 10 Early 2022"]
[White "Kazakouski, Valery"]
[Black "Pinheiro, Iung Alicio de O."]
[WhiteFideId "13507443"]
[BlackFideId "2104350"]
[WhiteElo "2789"]
[BlackElo "2555"]
[Result "1-0"]
[Round "04"]
[TimeControl "180+1"]
[Date "2022.05.11"]
[WhiteClock "0:01:29"]
[BlackClock "0:00:13"]

1. d4 {[%clk 0:03:00]}  Nf6 {[%clk 0:02:58]} 2. c4 {[%clk 0:03:01]}  g6 {[%clk 0:02:57]} 3. Nc3 {[%clk 0:03:01]}  d5 {[%clk 0:02:57]} 4. Nf3 {[%clk 0:02:58]}  Bg7 {[%clk 0:02:57]} 5. h4 {[%clk 0:02:59]}  dxc4 {[%clk 0:02:53]} 6. e4 {[%clk 0:02:59]}  c5 {[%clk 0:02:53]} 7. d5 {[%clk 0:02:59]}  b5 {[%clk 0:02:53]} 8. e5 {[%clk 0:03:00]}  Ng4 {[%clk 0:02:42]} 9. Bf4 {[%clk 0:03:00]}  b4 {[%clk 0:01:49]} 10. Ne4 {[%clk 0:02:59]}  Nd7 {[%clk 0:01:49]} 11. e6 {[%clk 0:02:54]}  Nde5 {[%clk 0:01:42]} 12. Nxe5 {[%clk 0:02:52]}  Nxe5 {[%clk 0:01:42]} 13. Bxe5 {[%clk 0:02:45]}  Bxe5 {[%clk 0:01:42]} 14. exf7+ {[%clk 0:02:46]}  Kxf7 {[%clk 0:01:38]} 15. Bxc4 {[%clk 0:02:46]}  Kg7 {[%clk 0:01:32]} 16. h5 {[%clk 0:02:47]}  Rf8 {[%clk 0:01:25]} 17. hxg6 {[%clk 0:02:31]}  hxg6 {[%clk 0:01:24]} 18. Qb3 {[%clk 0:02:21]}  a5 {[%clk 0:01:13]} 19. Qe3 {[%clk 0:02:16]}  Bf4 {[%clk 0:01:03]} 20. Qxc5 {[%clk 0:02:16]}  Bf5 {[%clk 0:00:53]} 21. Qd4+ {[%clk 0:02:13]}  e5 {[%clk 0:00:53]} 22. Qd3 {[%clk 0:02:13]}  Qb6 {[%clk 0:00:47]} 23. Ke2 {[%clk 0:02:04]}  Rac8 {[%clk 0:00:39]} 24. b3 {[%clk 0:01:56]}  Bh6 {[%clk 0:00:35]} 25. Raf1 {[%clk 0:01:42]}  a4 {[%clk 0:00:30]} 26. f3 {[%clk 0:01:31]}  axb3 {[%clk 0:00:29]} 27. axb3 {[%clk 0:01:31]}  Ra8 {[%clk 0:00:28]} 28. Ra1 {[%clk 0:01:31]}  Bxe4 {[%clk 0:00:18]} 29. Qxe4 {[%clk 0:01:31]}  Rae8 {[%clk 0:00:13]} 30. Ra6 {[%clk 0:01:29]}  Qd4 {[%clk 0:00:13]} 31. Qxg6+ {[%clk 0:01:29]} 1-0


[Site "https://www.chess.com"]

[Event "Titled Tuesday Blitz May 10 Early 2022"]
[White "Kazarian, Anna-Maja"]
[Black "Golubev, Mikhail"]
[WhiteFideId "1033689"]
[BlackFideId "14100983"]
[WhiteElo "2004"]
[BlackElo "2374"]
[Result "0-1"]
[Round "04"]
[TimeControl "180+1"]
[Date "2022.05.11"]
[WhiteClock "0:00:05"]
[BlackClock "0:00:07"]

1. e4 {[%clk 0:03:00]}  c5 {[%clk 0:02:59]} 2. Nf3 {[%clk 0:03:01]}  d6 {[%clk 0:02:59]} 3. d4 {[%clk 0:03:01]}  Nf6 {[%clk 0:03:00]} 4. Nc3 {[%clk 0:03:00]}  cxd4 {[%clk 0:02:59]} 5. Nxd4 {[%clk 0:03:00]}  Nc6 {[%clk 0:03:00]} 6. Be2 {[%clk 0:02:59]}  g6 {[%clk 0:02:59]} 7. O-O {[%clk 0:02:59]}  Bg7 {[%clk 0:03:00]} 8. Be3 {[%clk 0:02:57]}  O-O {[%clk 0:02:59]} 9. Qd2 {[%clk 0:02:53]}  Bd7 {[%clk 0:02:58]} 10. f4 {[%clk 0:02:50]}  Rc8 {[%clk 0:02:57]} 11. Kh1 {[%clk 0:02:31]}  a6 {[%clk 0:02:55]} 12. a4 {[%clk 0:02:12]}  Na5 {[%clk 0:02:35]} 13. e5 {[%clk 0:02:04]}  Ne8 {[%clk 0:02:34]} 14. Nd5 {[%clk 0:01:30]}  e6 {[%clk 0:02:02]} 15. Ne7+ {[%clk 0:01:25]}  Qxe7 {[%clk 0:01:59]} 16. Qxa5 {[%clk 0:01:26]}  dxe5 {[%clk 0:01:59]} 17. fxe5 {[%clk 0:01:27]}  Nc7 {[%clk 0:00:28]} 18. c4 {[%clk 0:01:16]}  Na8 {[%clk 0:00:25]} 19. Nb3 {[%clk 0:01:12]}  b6 {[%clk 0:00:24]} 20. Qc3 {[%clk 0:01:01]}  b5 {[%clk 0:00:23]} 21. axb5 {[%clk 0:00:58]}  axb5 {[%clk 0:00:23]} 22. c5 {[%clk 0:00:59]}  Nc7 {[%clk 0:00:23]} 23. Bf3 {[%clk 0:00:52]}  Nd5 {[%clk 0:00:23]} 24. Bxd5 {[%clk 0:00:45]}  exd5 {[%clk 0:00:24]} 25. Bd4 {[%clk 0:00:45]}  Bf5 {[%clk 0:00:23]} 26. c6 {[%clk 0:00:35]}  Qc7 {[%clk 0:00:20]} 27. Rfc1 {[%clk 0:00:31]}  Rfe8 {[%clk 0:00:19]} 28. Ra7 {[%clk 0:00:31]}  Qd8 {[%clk 0:00:17]} 29. c7 {[%clk 0:00:17]}  Qg5 {[%clk 0:00:16]} 30. Re1 {[%clk 0:00:13]}  Be4 {[%clk 0:00:16]} 31. Qg3 {[%clk 0:00:13]}  Qf5 {[%clk 0:00:14]} 32. Nc5 {[%clk 0:00:08]}  Bxe5 {[%clk 0:00:14]} 33. Bxe5 {[%clk 0:00:08]}  Qxe5 {[%clk 0:00:14]} 34. Qxe5 {[%clk 0:00:05]}  Rxe5 {[%clk 0:00:15]} 35. Nd7 {[%clk 0:00:05]}  Bxg2+ {[%clk 0:00:15]} 36. Kxg2 {[%clk 0:00:05]}  Rxe1 {[%clk 0:00:14]} 37. Nb6 {[%clk 0:00:04]}  Ree8 {[%clk 0:00:13]} 38. Nxc8 {[%clk 0:00:02]}  Rxc8 {[%clk 0:00:14]} 39. Kf3 {[%clk 0:00:02]}  Kf8 {[%clk 0:00:13]} 40. Kf4 {[%clk 0:00:02]}  Ke7 {[%clk 0:00:13]} 41. Ke5 {[%clk 0:00:02]}  Kd7 {[%clk 0:00:13]} 42. Kxd5 {[%clk 0:00:02]}  Rxc7 {[%clk 0:00:13]} 43. Ra5 {[%clk 0:00:03]}  Rc2 {[%clk 0:00:13]} 44. Rxb5 {[%clk 0:00:03]}  Rxh2 {[%clk 0:00:12]} 45. Rb7+ {[%clk 0:00:03]}  Ke8 {[%clk 0:00:12]} 46. Kd6 {[%clk 0:00:02]}  Rd2+ {[%clk 0:00:11]} 47. Ke5 {[%clk 0:00:03]}  Rf2 {[%clk 0:00:10]} 48. Rb8+ {[%clk 0:00:02]}  Ke7 {[%clk 0:00:10]} 49. Rb7+ {[%clk 0:00:02]}  Kf8 {[%clk 0:00:10]} 50. b4 {[%clk 0:00:03]}  Rf5+ {[%clk 0:00:09]} 51. Ke4 {[%clk 0:00:03]}  h5 {[%clk 0:00:10]} 52. b5 {[%clk 0:00:03]}  Kg7 {[%clk 0:00:09]} 53. b6 {[%clk 0:00:03]}  Rb5 {[%clk 0:00:09]} 54. Rb8 {[%clk 0:00:04]}  h4 {[%clk 0:00:08]} 55. Kf3 {[%clk 0:00:04]}  g5 {[%clk 0:00:08]} 56. Kg4 {[%clk 0:00:04]}  Kf6 {[%clk 0:00:07]} 57. b7 {[%clk 0:00:02]}  Rb4+ {[%clk 0:00:07]} 58. Kh3 {[%clk 0:00:02]}  Rb3+ {[%clk 0:00:05]} 59. Kg2 {[%clk 0:00:02]}  Rb2+ {[%clk 0:00:05]} 60. Kh3 {[%clk 0:00:02]}  Rb3+ {[%clk 0:00:05]} 61. Kg2 {[%clk 0:00:01]}  Rb2+ {[%clk 0:00:05]} 62. Kh3 {[%clk 0:00:02]}  Rb4 {[%clk 0:00:05]} 63. Kg2 {[%clk 0:00:02]}  g4 {[%clk 0:00:05]} 64. Rh8 {[%clk 0:00:02]}  Rb2+ {[%clk 0:00:05]} 65. Kg1 {[%clk 0:00:02]}  Rxb7 {[%clk 0:00:06]} 66. Rxh4 {[%clk 0:00:02]}  Rb4 {[%clk 0:00:07]} 67. Kg2 {[%clk 0:00:02]}  Kg5 {[%clk 0:00:07]} 68. Rh7 {[%clk 0:00:03]}  f5 {[%clk 0:00:07]} 69. Rg7+ {[%clk 0:00:03]}  Kf4 {[%clk 0:00:07]} 70. Rd7 {[%clk 0:00:04]}  Rb2+ {[%clk 0:00:08]} 71. Kg1 {[%clk 0:00:04]}  Kg3 {[%clk 0:00:07]} 72. Rd3+ {[%clk 0:00:05]}  Kh4 {[%clk 0:00:07]} 73. Rd1 {[%clk 0:00:04]}  f4 {[%clk 0:00:07]} 74. Rf1 {[%clk 0:00:05]}  f3 {[%clk 0:00:08]} 75. Kh1 {[%clk 0:00:05]}  Kg3 {[%clk 0:00:07]} 76. Kg1 {[%clk 0:00:05]}  Rg2+ {[%clk 0:00:06]} 77. Kh1 {[%clk 0:00:05]}  Rh2+ {[%clk 0:00:06]} 78. Kg1 {[%clk 0:00:05]}  f2+ {[%clk 0:00:07]} 0-1


[Site "https://www.chess.com"]